bitfinex/quotes_SOLUSD_20240813
["timestamp","ask_amount","ask_price","bid_price","bid_amount"]
[1723564260534,17.0696,146.46,146.38,45.25098]
[1723564260740,6.8293,146.43,146.38,45.12549]
[1723564261313,8.48993536,146.43,146.38,45.12549]
[1723564261944,6.8293,146.43,146.38,45.12549]
[1723564262122,6.8293,146.43,146.39,0.12549]
[1723564262619,8.48993536,146.43,146.39,0.12549]
[1723564263224,6.8293,146.43,146.39,0.12549]
[1723564263417,6.8293,146.43,146.37,6.0812]
[1723564263418,1.66063536,146.42,146.37,6.0812]
[1723564263618,6.8314,146.39,146.37,6.0812]
[1723564263809,8.49243536,146.38,146.35,16.1597]
[1723564264009,6.8318,146.38,146.35,16.1597]
[1723564264206,6.8312,146.39,146.35,16.1597]
[1723564264438,1.66063536,146.39,146.35,16.1597]
[1723564264638,6.8307,146.4,146.35,16.1597]
[1723564265040,38.2401,146.41,146.35,16.1597]
[1723564265212,6.8301,146.41,146.36,0.12549]
[1723564265416,6.8298,146.42,146.36,0.12549]
[1723564266047,8.49093536,146.41,146.36,0.12549]
[1723564266217,31.41,146.45,146.36,0.12549]
[1723564266424,6.8295,146.43,146.36,45.25098]
[1723564267660,31.41,146.43,146.35,16.1597]
[1723564267828,20.0,146.42,146.35,16.1597]
[1723564268019,21.66063536,146.42,146.35,16.1597]
[1723564268339,31.41,146.41,146.35,16.1597]
[1723564268522,6.8313,146.39,146.35,16.1597]
[1723564269322,6.8313,146.39,146.36,45.0]
[1723564269524,8.49193536,146.39,146.36,45.0]
[1723564270619,1.66063536,146.38,146.35,16.1597]
[1723564270924,6.8321,146.37,146.35,16.1597]
[1723564271454,20.0,146.42,146.35,16.1597]
[1723564271455,31.41,146.41,146.35,16.1597]
[1723564271620,20.0,146.4,146.35,16.1597]
[1723564271812,20.0,146.4,146.31,22.4949]
[1723564272024,6.8332,146.35,146.31,22.4949]
[1723564272214,1.66063536,146.34,146.31,22.4949]
[1723564272438,6.8332,146.35,146.31,22.4949]
[1723564272616,6.8326,146.36,146.31,22.4949]
[1723564272819,38.2421,146.37,146.31,22.4949]
[1723564273316,6.8321,146.37,146.31,22.4949]
[1723564273548,6.8321,146.37,146.32,45.0]
[1723564273746,6.8315,146.38,146.32,45.0]
[1723564274055,8.49263536,146.37,146.33,0.25098]
[1723564274724,6.832,146.37,146.33,0.25098]
[1723564277545,6.8317,146.38,146.33,0.25098]
[1723564277721,31.41,146.39,146.33,0.25098]
[1723564277916,20.0,146.38,146.33,0.25098]
[1723564278135,20.0,146.38,146.31,22.4949]
[1723564278333,6.8327,146.36,146.31,22.4949]
[1723564278524,6.8321,146.37,146.31,22.4949]
[1723564278745,26.8318,146.38,146.31,22.4949]
[1723564279247,26.8318,146.38,146.32,45.0]
[1723564279426,26.8318,146.38,146.33,0.12549]
[1723564279923,1.66063536,146.37,146.33,0.12549]
[1723564280126,1.66063536,146.36,146.32,45.12549]
[1723564280323,6.8321,146.37,146.32,45.12549]
[1723564280928,6.8325,146.36,146.32,45.12549]
[1723564281551,1.66063536,146.35,146.31,22.4949]
[1723564281759,6.8341,146.33,146.31,15.9726]
[1723564281967,1.66063536,146.32,146.28,6.066]
[1723564282258,6.8349,146.31,146.28,6.066]
[1723564282556,1.66063536,146.3,146.28,6.066]
[1723564282757,8.49593536,146.3,146.27,15.8901]
[1723564282944,6.8365,146.28,146.23,21.7631]
[1723564283133,1.66063536,146.27,146.18,31.41]
[1723564283462,6.837,146.27,146.19,15.6491]
[1723564284150,1.66063536,146.26,146.19,15.6491]
[1723564284342,6.837,146.27,146.19,15.6491]
[1723564284736,1.66063536,146.26,146.19,15.6491]
[1723564285043,6.837,146.27,146.19,15.6491]
[1723564286072,1.66063536,146.26,146.19,15.6491]
[1723564286234,1.66063536,146.26,146.2,45.25098]
[1723564286434,6.837,146.27,146.2,45.25098]
[1723564287052,33.07063536,146.29,146.2,45.25098]
[1723564287053,31.41,146.29,146.2,45.25098]
[1723564287250,15.0046,146.3,146.2,45.25098]
[1723564287450,26.8358,146.29,146.2,45.25098]
[1723564287967,20.0,146.29,146.2,45.25098]
[1723564288133,26.8358,146.29,146.2,45.25098]
[1723564288457,20.0,146.29,146.2,45.25098]
[1723564288644,38.2451,146.31,146.2,45.25098]
[1723564288954,20.0,146.3,146.2,45.25098]
[1723564289168,20.0,146.3,146.21,37.6124]
[1723564289349,20.0,146.31,146.22,45.25098]
[1723564289667,20.0,146.31,146.23,16.5503]
[1723564289869,20.0,146.31,146.24,45.12549]
[1723564290162,20.0,146.31,146.25,0.12549]
[1723564290750,6.8344,146.32,146.25,0.12549]
[1723564291257,6.834,146.33,146.25,0.12549]
[1723564291762,6.8343,146.32,146.25,0.12549]
[1723564292466,7.14364604,146.34,146.25,0.12549]
[1723564292467,6.8355,146.3,146.25,0.12549]
[1723564292636,1.66063536,146.29,146.25,0.12549]
[1723564292962,1.66063536,146.29,146.23,16.5503]
[1723564294056,6.8348,146.31,146.23,16.5503]
[1723564294256,6.8346,146.32,146.23,16.5503]
[1723564294568,1.66063536,146.31,146.24,45.25098]
[1723564295069,6.8353,146.3,146.24,45.25098]
[1723564295273,1.66063536,146.29,146.24,45.25098]
[1723564295649,33.07063536,146.29,146.23,16.5503]
[1723564295857,6.8374,146.26,146.23,16.5503]
[1723564296045,6.8386,146.23,146.21,6.2024]
[1723564296242,6.8381,146.24,146.19,15.1718]
[1723564296478,1.66063536,146.23,146.19,15.1718]
[1723564297767,6.8372,146.26,146.19,15.1718]
[1723564298063,1.66063536,146.26,146.19,15.1718]
[1723564298252,8.49793536,146.26,146.2,45.25098]
[1723564298453,31.41,146.26,146.19,15.1718]
[1723564298644,20.0,146.25,146.19,15.1718]
[1723564298849,6.8381,146.24,146.19,15.1718]
[1723564299042,26.8377,146.25,146.19,15.1718]
[1723564299239,20.0,146.25,146.19,15.1718]
[1723564299872,26.8376,146.25,146.2,45.0]
[1723564300168,20.0,146.25,146.2,45.0]
[1723564300366,6.8372,146.26,146.2,45.0]
[1723564300975,6.8367,146.27,146.2,45.0]
[1723564301267,31.41,146.28,146.21,0.25098]
[1723564301575,20.0,146.27,146.21,0.25098]
[1723564301749,33.07063536,146.26,146.2,45.0]
[1723564301953,31.41,146.26,146.2,45.0]
[1723564302267,38.2473,146.26,146.2,45.0]
[1723564302445,6.8376,146.25,146.2,45.0]
[1723564302952,1.66063536,146.24,146.2,45.0]
[1723564304561,38.2472,146.26,146.2,45.0]
[1723564306170,21.66063536,146.25,146.2,45.0]
[1723564306471,6.8387,146.23,146.2,45.0]
[1723564306686,1.66063536,146.22,146.17,6.025]
[1723564306846,31.41,146.2,146.15,15.3507]
[1723564307046,38.25,146.2,146.15,15.3507]
[1723564307578,6.8395,146.21,146.15,15.3507]
[1723564307868,51.41,146.22,146.15,15.3507]
[1723564307869,20.0,146.22,146.15,15.3507]
[1723564308074,6.8398,146.21,146.15,15.3507]
[1723564308276,6.8401,146.2,146.15,15.3507]
[1723564308751,6.8401,146.2,146.16,45.0]
[1723564311790,6.8408,146.18,146.16,45.0]
[1723564311989,6.8418,146.16,146.14,0.8207651]
[1723564312299,8.50283536,146.15,146.14,0.8207651]
[1723564312777,38.2518,146.16,146.14,0.8207651]
[1723564312975,6.8414,146.17,146.14,0.8207651]
[1723564313294,20.0,146.16,146.14,0.8207651]
[1723564314286,8.50283536,146.15,146.14,0.8207651]
[1723564314665,28.50283536,146.15,146.14,0.8207651]
[1723564314869,26.8422,146.15,146.14,0.8207651]
[1723564315388,33.98879387,146.15,146.14,0.8207651]
[1723564315596,35.64942923,146.15,146.14,0.8207651]
[1723564316304,33.98879387,146.15,146.14,0.8207651]
[1723564316994,6.8445,146.11,146.07,16.5278]
[1723564317164,38.2545,146.11,146.07,16.5278]
[1723564317784,6.8447,146.1,146.07,16.5278]
[1723564317989,6.8459,146.08,146.01,22.6317]
[1723564318180,31.41,146.09,146.01,22.6317]
[1723564319498,31.41,146.11,146.01,22.6317]
[1723564319686,20.0,146.1,146.01,22.6317]
[1723564320293,6.8435,146.13,146.02,66.61158881]
[1723564320585,20.0,146.12,146.02,65.25098]
[1723564320779,31.41,146.13,146.02,65.25098]
[1723564320997,6.8442,146.11,146.02,65.25098]
[1723564321174,31.41,146.13,146.02,65.25098]
[1723564321370,20.0,146.12,146.02,65.25098]
[1723564321776,26.8437,146.12,146.02,65.25098]
[1723564321991,20.0,146.12,146.02,65.25098]
[1723564322204,13.98889387,146.15,146.04,6.2525]
[1723564322408,26.8429,146.14,146.05,45.25098]
[1723564322592,6.8429,146.14,146.05,45.25098]
[1723564323190,13.98899387,146.15,146.05,45.25098]
[1723564323388,56.5216,146.19,146.07,6.0124]
[1723564323592,39.42,146.19,146.08,45.25098]
[1723564323882,6.8413,146.17,146.08,45.25098]
[1723564324082,6.8421,146.16,146.08,45.25098]
[1723564324278,46.56267667,146.19,146.08,45.25098]
[1723564324513,6.8413,146.18,146.08,45.25098]
[1723564324698,46.56267667,146.19,146.08,45.25098]
[1723564324699,53.40307667,146.19,146.08,45.25098]
[1723564325001,39.42,146.21,146.09,15.148]
[1723564325208,39.42,146.21,146.1,45.25098]
[1723564325408,46.56237869,146.21,146.1,45.25098]
[1723564325576,6.8418,146.16,146.1,45.25098]
[1723564325773,63.66167869,146.21,146.1,45.25098]
[1723564326003,6.8405,146.19,146.1,45.25098]
[1723564326185,20.0,146.18,146.1,45.25098]
[1723564326507,46.56237869,146.21,146.1,45.25098]
[1723564327003,7.14237869,146.21,146.11,6.5666]
[1723564327219,6.8394,146.22,146.13,15.3288]
[1723564327389,39.42,146.23,146.14,45.25098]
[1723564327591,6.8408,146.19,146.14,45.25098]
[1723564327888,6.8416,146.17,146.14,45.0]
[1723564328098,39.42,146.21,146.14,45.0]
[1723564328279,6.8412,146.18,146.14,45.0]
[1723564328980,6.8414,146.17,146.14,45.0]
[1723564329381,20.0,146.2,146.14,45.0]
[1723564330013,6.8408,146.18,146.14,45.0]
[1723564330185,6.8421,146.16,146.14,45.0]
[1723564330501,39.42,146.19,146.14,45.0]
[1723564330690,20.0,146.18,146.14,45.0]
[1723564331006,6.842,146.16,146.14,45.0]
[1723564331711,8.50203536,146.17,146.14,45.0]
[1723564331896,20.0,146.18,146.14,45.0]
[1723564332103,6.8404,146.19,146.14,45.0]
[1723564332281,20.0,146.18,146.14,45.0]
[1723564332479,6.8413,146.17,146.14,45.0]
[1723564332682,6.8418,146.16,146.14,45.0]
[1723564334399,1.66063536,146.15,146.14,45.0]
[1723564334607,26.841,146.18,146.13,15.3288]
[1723564334784,26.841,146.18,146.14,45.0]
[1723564334983,6.8413,146.17,146.14,45.0]
[1723564335412,20.0,146.18,146.14,45.0]
[1723564335621,6.8422,146.15,146.14,45.0]
[1723564335822,6.8419,146.16,146.14,45.0]
[1723564335981,1.66063536,146.15,146.13,15.3288]
[1723564336189,1.66063536,146.15,146.11,6.5666]
[1723564336405,1.66063536,146.14,146.12,45.0]
[1723564336619,6.8419,146.16,146.12,45.0]
[1723564336794,41.08063536,146.17,146.11,6.5666]
[1723564336991,41.08063536,146.17,146.1,15.3906]
[1723564336992,6.8437,146.12,146.1,15.3906]
[1723564337186,6.8441,146.11,146.07,6.3465]
[1723564337613,39.42,146.13,146.07,6.3465]
[1723564337791,20.0,146.12,146.07,6.3465]
[1723564338816,26.8437,146.12,146.08,45.0]
[1723564338993,26.8437,146.12,146.07,6.3465]
[1723564338994,6.8443,146.11,146.07,6.3465]
[1723564339312,6.8451,146.09,146.06,15.3906]
[1723564339613,1.66063536,146.08,146.06,15.3906]
[1723564339806,6.8447,146.1,146.06,15.3906]
[1723564340533,1.66063536,146.09,146.06,15.3906]
[1723564340840,6.8447,146.1,146.07,45.0]
[1723564341539,6.8441,146.12,146.07,45.0]
[1723564341739,6.843,146.14,146.07,45.0]
[1723564342038,6.8434,146.13,146.07,45.0]
[1723564343316,46.56456148,146.15,146.08,0.12549]
[1723564343317,7.14456148,146.15,146.08,0.12549]
[1723564343511,17.1006,146.2,146.09,6.0096]
[1723564343512,6.8417,146.17,146.09,6.0096]
[1723564343711,6.8417,146.17,146.1,45.12549]
[1723564343908,17.1006,146.2,146.1,45.12549]
[1723564343909,46.56398259,146.19,146.1,45.25098]
[1723564344135,6.8426,146.15,146.1,45.25098]
[1723564345440,38.66398259,146.19,146.1,45.25098]
[1723564345750,26.8411,146.18,146.1,45.25098]
[1723564345914,6.8414,146.17,146.1,45.25098]
[1723564346444,6.8419,146.16,146.1,45.25098]
[1723564347315,6.8414,146.17,146.1,45.25098]
[1723564348541,6.8418,146.16,146.1,45.25098]
[1723564349965,6.8415,146.17,146.1,45.25098]
[1723564350243,6.8419,146.16,146.1,45.25098]
[1723564350440,6.8415,146.17,146.1,45.25098]
[1723564350948,6.8418,146.16,146.1,45.25098]
[1723564351442,6.8414,146.17,146.1,45.25098]
[1723564355222,31.52,146.15,146.09,6.0096]
[1723564355523,31.52,146.13,146.06,15.3906]
[1723564355841,1.66063536,146.12,146.06,15.3906]
[1723564356141,6.8451,146.09,146.06,15.3906]
[1723564356552,8.50533536,146.1,146.06,15.3906]
[1723564357038,20.0,146.12,146.06,15.3906]
[1723564357652,20.0,146.13,146.06,15.3906]
[1723564357850,20.0,146.14,146.06,15.3906]
[1723564358049,6.8433,146.13,146.06,15.3906]
[1723564358230,20.0,146.14,146.07,45.25098]
[1723564358429,26.843,146.14,146.07,45.25098]
[1723564358944,20.0,146.14,146.07,45.25098]
[1723564359922,7.1411662,146.16,146.07,76.77098]
[1723564360126,1.66063536,146.18,146.07,76.77098]
[1723564360351,6.8426,146.15,146.07,45.25098]
[1723564360555,1.66063536,146.14,146.07,45.25098]
[1723564360726,8.50323536,146.15,146.07,45.25098]
[1723564360926,8.50333536,146.14,146.07,45.25098]
[1723564361148,6.8427,146.14,146.07,45.25098]
[1723564363151,6.8422,146.15,146.07,45.25098]
[1723564364452,31.52,146.15,146.07,45.25098]
[1723564364640,1.66063536,146.14,146.07,45.25098]
[1723564365034,31.52,146.15,146.07,45.25098]
[1723564365242,6.8435,146.13,146.07,45.25098]
[1723564366857,31.52,146.15,146.07,45.25098]
[1723564366858,6.8429,146.14,146.07,45.25098]
[1723564367247,6.8422,146.16,146.07,45.25098]
[1723564367432,20.0,146.15,146.07,45.25098]
[1723564367757,31.52,146.19,146.07,45.25098]
[1723564367758,20.0,146.16,146.08,6.0002]
[1723564367942,20.0,146.16,146.09,45.25098]
[1723564368139,6.8425,146.15,146.09,45.25098]
[1723564368761,26.8419,146.16,146.09,45.25098]
[1723564369935,6.8423,146.15,146.09,45.25098]
[1723564370955,8.50333536,146.14,146.09,45.25098]
[1723564371469,6.844,146.12,146.08,6.0002]
[1723564371644,8.50463536,146.12,146.08,6.0002]
[1723564372036,6.8433,146.13,146.08,6.0002]
[1723564372541,1.66063536,146.12,146.08,6.0002]
[1723564372742,6.8433,146.13,146.09,45.0]
[1723564372948,6.8428,146.14,146.09,45.0]
[1723564374036,31.52,146.15,146.09,45.0]
[1723564374263,6.8437,146.12,146.09,45.0]
[1723564374437,1.66063536,146.14,146.09,45.0]
[1723564374438,6.8433,146.13,146.09,45.0]
[1723564375331,6.8429,146.14,146.09,45.0]
[1723564378640,7.1378309,146.15,146.09,45.0]
[1723564378840,13.9801309,146.15,146.09,45.0]
[1723564379662,8.50343536,146.14,146.09,45.0]
[1723564380049,6.8432,146.13,146.09,45.0]
[1723564380559,38.6578309,146.15,146.09,45.0]
[1723564380766,13.9803309,146.15,146.09,45.0]
[1723564380972,6.8425,146.15,146.09,45.0]
[1723564381181,20.0,146.16,146.09,45.0]
[1723564381182,6.8427,146.14,146.09,45.0]
[1723564381763,6.8424,146.15,146.09,45.0]
[1723564382370,33.98002201,146.16,146.1,0.12549]
[1723564382551,33.98002201,146.16,146.1,0.25098]
[1723564382877,27.13792201,146.16,146.09,45.0]
[1723564383168,6.8429,146.14,146.09,45.0]
[1723564383362,6.8432,146.13,146.09,45.0]
[1723564383559,6.8442,146.11,146.09,45.0]
[1723564384061,6.8447,146.1,146.06,21.9296]
[1723564384938,6.8443,146.11,146.06,21.9296]
[1723564385663,31.52,146.13,146.06,21.9296]
[1723564385664,6.8437,146.12,146.07,45.0]
[1723564386148,1.66063536,146.11,146.07,45.0]
[1723564386547,6.8437,146.12,146.07,45.0]
[1723564387474,8.50483536,146.11,146.07,45.0]
[1723564387970,6.8442,146.11,146.07,45.0]
[1723564388169,6.8443,146.11,146.07,45.0]
[1723564388573,6.8463,146.07,146.02,21.4248]
[1723564388876,1.66063536,146.06,146.02,21.4248]
[1723564389470,8.50713536,146.06,146.02,21.4248]
[1723564389669,1.66063536,146.06,146.02,21.4248]
[1723564389880,6.8465,146.06,146.02,21.4248]
[1723564390351,6.8462,146.07,146.02,21.4248]
[1723564390872,1.66063536,146.06,146.02,21.4248]
[1723564391050,6.8462,146.07,146.02,21.4248]
[1723564391457,1.66063536,146.06,146.02,21.4248]
[1723564391657,1.66063536,146.06,146.03,45.0]
[1723564391860,21.66063536,146.07,146.03,45.0]
[1723564392053,28.50663536,146.07,146.03,45.0]
[1723564392958,53.18063536,146.07,146.03,45.0]
[1723564393167,6.8467,146.06,146.03,45.0]
[1723564393367,1.66063536,146.05,146.03,45.0]
[1723564393873,6.8474,146.04,146.02,15.2835]
[1723564394082,6.8471,146.05,146.02,15.2835]
[1723564394451,6.8474,146.04,146.02,15.2835]
[1723564394661,1.66063536,146.06,146.02,15.2835]
[1723564394869,6.8471,146.05,146.02,15.2835]
[1723564395058,1.66063536,146.04,146.02,15.2835]
[1723564395475,8.50803536,146.04,145.99,6.6346]
[1723564395674,6.8482,146.03,145.99,6.6346]
[1723564395877,6.8488,146.01,145.95,6.6346]
[1723564396062,58.3688,146.01,145.95,6.6346]
[1723564396267,60.02943536,146.01,145.95,6.6346]
[1723564396864,6.8487,146.02,145.95,6.6346]
[1723564397068,6.8475,146.04,145.95,6.6346]
[1723564397266,20.0,146.03,145.95,6.6346]
[1723564397584,1.66063536,146.02,145.95,6.6346]
[1723564397793,51.52,146.03,145.95,6.6346]
[1723564397794,8.50943536,146.01,145.95,6.6346]
[1723564397955,6.8488,146.01,145.95,6.6346]
[1723564398284,26.8488,146.01,145.95,6.6346]
[1723564398455,20.0,146.01,145.95,6.6346]
[1723564400667,31.52,146.07,145.95,6.6346]
[1723564400976,6.8474,146.04,145.95,6.6346]
[1723564401154,26.8465,146.06,145.95,6.6346]
[1723564401353,1.66063536,146.05,145.95,6.6346]
[1723564401568,6.8487,146.02,145.95,6.6346]
[1723564402059,6.848,146.03,145.95,6.6346]
[1723564402361,7.13782546,146.05,145.95,6.6346]
[1723564402576,20.0,146.04,145.95,6.6346]
[1723564402782,33.9824026,146.06,145.95,6.6346]
[1723564402986,6.8475,146.04,145.95,6.6346]
[1723564403191,6.8484,146.02,145.95,6.6346]
[1723564403353,8.50943536,146.01,145.95,6.6346]
[1723564403559,6.848,146.03,145.95,6.6346]
[1723564403754,20.0,146.02,145.95,6.6346]
[1723564404175,6.848,146.03,145.95,6.6346]
[1723564404493,26.8487,146.02,145.95,6.6346]
[1723564404672,6.8487,146.02,145.95,6.6346]
[1723564404872,20.0,146.04,145.95,6.6346]
[1723564405183,20.0,146.04,145.95,38.1546]
[1723564405388,20.0,146.05,145.95,38.1546]
[1723564405567,26.8469,146.05,145.95,38.1546]
[1723564405887,20.0,146.05,145.95,38.1546]
[1723564406201,20.0,146.05,146.01,16.1392]
[1723564406381,6.8456,146.08,146.02,45.0]
[1723564406572,6.8462,146.07,146.02,45.0]
[1723564406774,38.6583196,146.09,146.02,45.0]
[1723564407081,6.847,146.05,146.02,45.0]
[1723564407880,6.8466,146.06,146.02,45.0]
[1723564408194,20.0,146.05,146.02,45.0]
[1723564408562,45.5035196,146.09,146.02,45.0]
[1723564408897,20.0,146.08,146.02,45.0]
[1723564409063,20.0,146.08,146.03,0.25098]
[1723564409386,6.8441,146.11,146.03,0.25098]
[1723564409685,6.8438,146.12,146.03,0.25098]
[1723564409887,6.8441,146.11,146.03,0.25098]
[1723564410184,6.8437,146.12,146.03,0.25098]
[1723564410589,6.8441,146.11,146.03,0.25098]
[1723564411384,31.52,146.13,146.03,0.25098]
[1723564411687,6.8453,146.09,146.03,0.25098]
[1723564412065,8.50623536,146.08,146.03,0.25098]
[1723564412394,6.8452,146.09,146.03,0.25098]
[1723564413266,8.50623536,146.08,146.03,0.25098]
[1723564413494,1.66063536,146.07,146.03,0.25098]
[1723564413791,31.52,146.09,146.01,22.2394]
[1723564413962,6.8466,146.06,146.01,22.2394]
[1723564414170,6.8463,146.07,146.01,22.2394]
[1723564414386,20.0,146.06,146.01,22.2394]
[1723564414688,6.8469,146.05,146.01,22.2394]
[1723564414880,21.66063536,146.06,146.01,22.2394]
[1723564415092,31.52,146.07,146.01,22.2394]
[1723564415267,6.8478,146.04,146.01,22.2394]
[1723564415472,6.8483,146.02,145.97,21.7607]
[1723564415878,6.8479,146.03,145.97,21.7607]
[1723564416077,6.8476,146.04,145.97,21.7607]
[1723564416892,6.8474,146.05,145.97,21.7607]
[1723564417069,20.0,146.06,145.97,21.7607]
[1723564417266,1.66063536,146.05,146.01,0.25098]
[1723564417472,6.8455,146.08,146.01,0.25098]
[1723564417672,20.0,146.07,146.01,0.25098]
[1723564417904,21.66063536,146.07,146.01,0.25098]
[1723564418097,20.0,146.08,145.97,53.2807]
[1723564418300,20.0,146.08,145.99,0.12549]
[1723564418474,6.8467,146.06,145.99,0.12549]
[1723564419198,6.8461,146.07,146.01,0.25098]
[1723564419393,20.0,146.06,146.01,0.25098]
[1723564420374,20.0,146.07,146.01,0.25098]
[1723564420571,17.1086,146.13,146.01,0.25098]
[1723564420572,6.8441,146.12,146.02,23.0446]
[1723564420783,31.52,146.13,146.03,45.25098]
[1723564421085,6.8444,146.11,146.03,45.25098]
[1723564421280,6.8446,146.1,146.03,45.25098]
[1723564421492,6.8443,146.11,146.03,45.25098]
[1723564421692,6.8446,146.1,146.03,45.25098]
[1723564421878,20.0,146.09,146.03,45.25098]
[1723564422078,20.0,146.1,146.03,45.25098]
[1723564422595,13.97973439,146.13,146.03,76.77098]
[1723564422805,6.843,146.14,146.03,76.77098]
[1723564423486,38.65401136,146.17,146.05,37.541]
[1723564423687,6.8419,146.16,146.07,16.2982]
[1723564423894,6.8419,146.16,146.08,0.25098]
[1723564424201,7.13642026,146.18,146.08,45.25098]
[1723564424389,6.8419,146.16,146.09,6.0679]
[1723564424595,6.8419,146.16,146.1,45.12549]
[1723564424779,8.50293536,146.15,146.11,0.12549]
[1723564425103,6.8419,146.16,146.11,0.12549]
[1723564425992,6.8415,146.17,146.11,0.12549]
[1723564426178,7.13642026,146.18,146.11,0.12549]
[1723564426390,15.3608,146.23,146.12,16.0557]
[1723564426590,6.8396,146.21,146.13,45.25098]
[1723564426813,6.8396,146.21,146.14,6.6465]
[1723564426980,6.8396,146.21,146.15,45.25098]
[1723564427392,7.13466364,146.23,146.15,45.25098]
[1723564427592,6.8383,146.24,146.15,45.25098]
[1723564427805,31.52,146.25,146.15,45.25098]
[1723564428009,6.8401,146.2,146.15,45.25098]
[1723564428604,6.8407,146.19,146.15,45.0]
[1723564430504,31.52,146.21,146.15,45.0]
[1723564430706,20.0,146.2,146.15,45.0]
[1723564431396,6.8386,146.23,146.16,0.25098]
[1723564431810,38.65495493,146.25,146.16,0.25098]
[1723564431811,6.8382,146.24,146.16,0.25098]
[1723564432104,6.8385,146.23,146.16,0.25098]
[1723564432311,6.8382,146.24,146.17,16.2933]
[1723564432478,39.36,146.3,146.18,45.25098]
[1723564432479,6.8372,146.26,146.18,45.25098]
[1723564432811,7.13527868,146.28,146.19,6.5922]
[1723564433012,39.36,146.25,146.19,6.5922]
[1723564433183,39.36,146.25,146.18,45.0]
[1723564433184,6.8398,146.21,146.18,45.0]
[1723564433380,8.50063536,146.2,146.18,45.0]
[1723564433602,39.36,146.23,146.18,45.0]
[1723564433899,6.839,146.22,146.18,45.0]
[1723564434103,39.36,146.23,146.18,45.0]
[1723564434317,20.0,146.22,146.18,45.0]
[1723564434483,6.84,146.2,146.18,45.0]
[1723564434686,6.8395,146.21,146.18,45.0]
[1723564434904,8.50083536,146.2,146.18,45.0]
[1723564435080,6.8404,146.19,146.18,45.0]
[1723564435703,6.8395,146.21,146.18,45.0]
[1723564435915,20.0,146.22,146.17,16.2933]
[1723564436283,41.02063536,146.21,146.15,6.5922]
[1723564436489,6.841,146.18,146.16,45.0]
[1723564436685,6.8426,146.15,146.12,6.3699]
[1723564437083,6.8419,146.16,146.12,6.3699]
[1723564437406,8.50293536,146.15,146.12,6.3699]
[1723564437580,6.8419,146.16,146.12,6.3699]
[1723564437785,39.36,146.19,146.12,6.3699]
[1723564437992,6.8414,146.17,146.12,6.3699]
[1723564438414,6.8426,146.15,146.12,6.3699]
[1723564438801,41.02063536,146.17,146.11,15.3001]
[1723564439006,20.0,146.16,146.09,6.1375]
[1723564439312,1.66063536,146.15,146.09,6.1375]
[1723564439615,1.66063536,146.14,146.09,6.1375]
[1723564439812,6.8433,146.13,146.09,6.1375]
[1723564439988,8.50353536,146.14,146.09,6.1375]
[1723564440307,20.0,146.16,146.1,45.0]
[1723564440516,20.0,146.16,146.1,45.12549]
[1723564440689,26.8415,146.17,146.11,0.12549]
[1723564441089,26.8414,146.17,146.11,0.12549]
[1723564441283,20.0,146.17,146.11,0.12549]
[1723564441611,6.841,146.18,146.11,0.12549]
[1723564441821,6.8402,146.2,146.11,0.12549]
[1723564442387,6.8412,146.18,146.11,0.12549]
[1723564442587,1.66063536,146.17,146.11,0.12549]
[1723564442789,6.841,146.18,146.11,0.12549]